[Event "*** Titled Tuesday Blitz"]
[Site "Chess.com"]
[Date "2020.12.01"]
[Round "4"]
[White "enriquebutti"]
[Black "underdogchss"]
[Result "1-0"]
[WhiteElo "2052"]
[BlackElo "2353"]
[TimeControl "180+1"]
[EndTime "10:37:53 PST"]
[Termination "enriquebutti won on time"]

1. d4 {[%clk 0:02:59.8]} 1... Nf6 {[%clk 0:02:59.6]} 2. Nf3 {[%clk 0:02:58.9]}
2... d5 {[%clk 0:02:57.8]} 3. c4 {[%clk 0:02:58.4]} 3... e6 {[%clk 0:02:57.9]}
4. e3 {[%clk 0:02:58]} 4... Be7 {[%clk 0:02:54.3]} 5. Nc3 {[%clk 0:02:57]} 5...
O-O {[%clk 0:02:53.2]} 6. b3 {[%clk 0:02:56.4]} 6... b6 {[%clk 0:02:49.4]} 7.
Bb2 {[%clk 0:02:55.9]} 7... Bb7 {[%clk 0:02:49.2]} 8. Bd3 {[%clk 0:02:55.6]}
8... Nbd7 {[%clk 0:02:47.1]} 9. O-O {[%clk 0:02:54.7]} 9... c5 {[%clk
0:02:45.2]} 10. Qe2 {[%clk 0:02:54.2]} 10... cxd4 {[%clk 0:02:37.6]} 11. exd4
{[%clk 0:02:53.6]} 11... Re8 {[%clk 0:02:36.2]} 12. Rad1 {[%clk 0:02:51.6]}
12... Bf8 {[%clk 0:02:34.4]} 13. Ne5 {[%clk 0:02:50.4]} 13... g6 {[%clk
0:02:33]} 14. f4 {[%clk 0:02:47.4]} 14... Bg7 {[%clk 0:02:32.4]} 15. Kh1 {[%clk
0:02:35]} 15... a6 {[%clk 0:02:31.9]} 16. cxd5 {[%clk 0:02:23.9]} 16... Nxd5
{[%clk 0:02:26.6]} 17. Nxd5 {[%clk 0:02:23.2]} 17... exd5 {[%clk 0:02:11.5]} 18.
f5 {[%clk 0:01:44.8]} 18... Nf6 {[%clk 0:02:11.5]} 19. fxg6 {[%clk 0:01:42.6]}
19... fxg6 {[%clk 0:02:06.6]} 20. Bc1 {[%clk 0:01:40.3]} 20... Ne4 {[%clk
0:01:59.1]} 21. Bxe4 {[%clk 0:01:37.8]} 21... dxe4 {[%clk 0:01:58.8]} 22. Bf4
{[%clk 0:01:37.2]} 22... Qd5 {[%clk 0:01:38.5]} 23. Qe3 {[%clk 0:01:36.6]} 23...
Rf8 {[%clk 0:01:32.1]} 24. Ng4 {[%clk 0:01:21.4]} 24... Rad8 {[%clk 0:01:23.5]}
25. Bh6 {[%clk 0:01:06.4]} 25... Rxf1+ {[%clk 0:01:02]} 26. Rxf1 {[%clk
0:01:05.2]} 26... Qxd4 {[%clk 0:01:02.1]} 27. Qf4 {[%clk 0:01:00.1]} 27... Qd7
{[%clk 0:00:28]} 28. Nf6+ {[%clk 0:00:46.3]} 28... Bxf6 {[%clk 0:00:25.8]} 29.
Qxf6 {[%clk 0:00:45.5]} 1-0

[Event "*** Titled Tuesday Blitz"]
[Site "Chess.com"]
[Date "2020.12.01"]
[Round "4"]
[White "AquivaRubinstein"]
[Black "ajkom197"]
[Result "1/2-1/2"]
[WhiteElo "2493"]
[BlackElo "2336"]
[TimeControl "180+1"]
[EndTime "10:37:54 PST"]
[Termination "Game drawn by repetition"]

1. e4 {[%clk 0:03:00.9]} 1... c6 {[%clk 0:03:00]} 2. d4 {[%clk 0:02:59.3]} 2...
d5 {[%clk 0:03:00.2]} 3. Nc3 {[%clk 0:02:57.6]} 3... dxe4 {[%clk 0:03:00.3]} 4.
Nxe4 {[%clk 0:02:57.6]} 4... Nf6 {[%clk 0:03:00.9]} 5. Nxf6+ {[%clk 0:02:56.6]}
5... exf6 {[%clk 0:03:01.8]} 6. c3 {[%clk 0:02:53.6]} 6... Bd6 {[%clk
0:03:01.3]} 7. Bd3 {[%clk 0:02:53]} 7... O-O {[%clk 0:03:00.8]} 8. Qc2 {[%clk
0:02:52.9]} 8... Re8+ {[%clk 0:03:00.9]} 9. Ne2 {[%clk 0:02:52.9]} 9... h5
{[%clk 0:03:01.1]} 10. O-O {[%clk 0:02:45]} 10... Qc7 {[%clk 0:02:58.2]} 11. h3
{[%clk 0:02:34.2]} 11... Nd7 {[%clk 0:02:55]} 12. Bd2 {[%clk 0:02:16.2]} 12...
Nf8 {[%clk 0:02:49.3]} 13. Rfe1 {[%clk 0:02:05.5]} 13... Be6 {[%clk 0:02:47.2]}
14. c4 {[%clk 0:01:56.5]} 14... Rad8 {[%clk 0:02:45.8]} 15. b4 {[%clk
0:01:46.7]} 15... b6 {[%clk 0:02:43.3]} 16. c5 {[%clk 0:01:15.8]} 16... Be7
{[%clk 0:02:41.2]} 17. Nf4 {[%clk 0:01:14.5]} 17... Rxd4 {[%clk 0:02:28.8]} 18.
Nxh5 {[%clk 0:01:05.5]} 18... g6 {[%clk 0:02:26.7]} 19. Ng3 {[%clk 0:01:01.5]}
19... f5 {[%clk 0:02:21.1]} 20. Bc3 {[%clk 0:00:59.1]} 20... Rdd8 {[%clk
0:02:17.6]} 21. Bb2 {[%clk 0:00:56.2]} 21... Nh7 {[%clk 0:02:09]} 22. Bc4 {[%clk
0:00:44.2]} 22... Bxc4 {[%clk 0:02:04.2]} 23. Qxc4 {[%clk 0:00:44.2]} 23... Bf6
{[%clk 0:02:04.7]} 24. Bxf6 {[%clk 0:00:40.5]} 24... Nxf6 {[%clk 0:02:05.6]} 25.
cxb6 {[%clk 0:00:37.8]} 25... axb6 {[%clk 0:02:04]} 26. Rxe8+ {[%clk 0:00:34.2]}
26... Rxe8 {[%clk 0:01:59.6]} 27. Rc1 {[%clk 0:00:34.5]} 27... Re6 {[%clk
0:01:58]} 28. Ne2 {[%clk 0:00:32.5]} 28... b5 {[%clk 0:01:48.4]} 29. Qd3 {[%clk
0:00:31.9]} 29... Qe7 {[%clk 0:01:41.7]} 30. Nd4 {[%clk 0:00:27.6]} 30... Re1+
{[%clk 0:01:41.1]} 31. Rxe1 {[%clk 0:00:23]} 31... Qxe1+ {[%clk 0:01:42]} 32.
Kh2 {[%clk 0:00:20.4]} 32... Qxf2 {[%clk 0:01:35.7]} 33. Nxc6 {[%clk 0:00:20.2]}
33... Qxa2 {[%clk 0:01:30.8]} 34. Qxb5 {[%clk 0:00:17.3]} 34... Qd2 {[%clk
0:01:23.8]} 35. Qb8+ {[%clk 0:00:16.3]} 35... Kg7 {[%clk 0:01:22.9]} 36. Qe5
{[%clk 0:00:16]} 36... Qd5 {[%clk 0:01:16.3]} 37. Qxd5 {[%clk 0:00:15.4]} 37...
Nxd5 {[%clk 0:01:17.2]} 38. b5 {[%clk 0:00:15]} 38... g5 {[%clk 0:01:15.2]} 39.
Kg3 {[%clk 0:00:14.5]} 39... Kg6 {[%clk 0:01:12.3]} 40. Kf3 {[%clk 0:00:14.4]}
40... Nb6 {[%clk 0:01:10]} 41. Ke3 {[%clk 0:00:13]} 41... f4+ {[%clk 0:01:08.7]}
42. Kd4 {[%clk 0:00:12.8]} 42... Kf5 {[%clk 0:01:05.9]} 43. Kc5 {[%clk
0:00:12.9]} 43... Na4+ {[%clk 0:01:05.7]} 44. Kb4 {[%clk 0:00:12.7]} 44... Nb6
{[%clk 0:01:05.9]} 45. Kc5 {[%clk 0:00:12.9]} 45... Na4+ {[%clk 0:01:06.2]} 46.
Kb4 {[%clk 0:00:13.2]} 46... Nb6 {[%clk 0:01:06.4]} 47. Kc5 {[%clk 0:00:13.4]}
1/2-1/2

[Event "*** Titled Tuesday Blitz"]
[Site "Chess.com"]
[Date "2020.12.01"]
[Round "4"]
[White "ftorodent"]
[Black "MasterKroket"]
[Result "1-0"]
[WhiteElo "2621"]
[BlackElo "2403"]
[TimeControl "180+1"]
[EndTime "10:37:55 PST"]
[Termination "ftorodent won by resignation"]

1. d4 {[%clk 0:03:00.9]} 1... Nf6 {[%clk 0:02:59.7]} 2. c4 {[%clk 0:03:00.2]}
2... e6 {[%clk 0:02:59.8]} 3. Nf3 {[%clk 0:03:00.2]} 3... b6 {[%clk 0:02:59.3]}
4. a3 {[%clk 0:02:59.6]} 4... Bb7 {[%clk 0:02:59.2]} 5. Nc3 {[%clk 0:02:59.3]}
5... d5 {[%clk 0:02:58.9]} 6. Bg5 {[%clk 0:02:58]} 6... Be7 {[%clk 0:02:58.4]}
7. cxd5 {[%clk 0:02:52.6]} 7... Nxd5 {[%clk 0:02:56.9]} 8. Bxe7 {[%clk
0:02:52.3]} 8... Qxe7 {[%clk 0:02:53.9]} 9. Rc1 {[%clk 0:02:49.4]} 9... O-O
{[%clk 0:02:52.3]} 10. e3 {[%clk 0:02:48.9]} 10... Rd8 {[%clk 0:02:47.7]} 11.
Nxd5 {[%clk 0:02:47]} 11... Bxd5 {[%clk 0:02:37.5]} 12. Bd3 {[%clk 0:02:46.4]}
12... h6 {[%clk 0:02:19.3]} 13. Qc2 {[%clk 0:02:39.4]} 13... c5 {[%clk
0:01:56.8]} 14. e4 {[%clk 0:02:08]} 14... Bb7 {[%clk 0:01:53.7]} 15. dxc5 {[%clk
0:02:06.8]} 15... bxc5 {[%clk 0:01:53.7]} 16. O-O {[%clk 0:02:06.1]} 16... Nc6
{[%clk 0:01:45.1]} 17. Rfd1 {[%clk 0:01:59.8]} 17... Nd4 {[%clk 0:01:43.6]} 18.
Nxd4 {[%clk 0:01:59.9]} 18... cxd4 {[%clk 0:01:43.6]} 19. Qc5 {[%clk 0:01:54.2]}
19... Qxc5 {[%clk 0:01:32.4]} 20. Rxc5 {[%clk 0:01:54]} 20... Rac8 {[%clk
0:01:33]} 21. Rdc1 {[%clk 0:01:53.1]} 21... Rxc5 {[%clk 0:01:26.8]} 22. Rxc5
{[%clk 0:01:53.1]} 22... Rd7 {[%clk 0:01:25.4]} 23. Kf1 {[%clk 0:01:38.7]} 23...
f6 {[%clk 0:01:25.6]} 24. e5 {[%clk 0:01:25.7]} 24... Kf7 {[%clk 0:01:22]} 25.
f4 {[%clk 0:01:25.3]} 25... g5 {[%clk 0:01:12.6]} 26. g3 {[%clk 0:01:18.7]}
26... fxe5 {[%clk 0:01:06.2]} 27. fxe5 {[%clk 0:01:17.3]} 27... Bf3 {[%clk
0:01:00.2]} 28. Kf2 {[%clk 0:01:10.4]} 28... g4 {[%clk 0:00:59.7]} 29. Ke1
{[%clk 0:01:09.4]} 29... Ke7 {[%clk 0:00:55.5]} 30. Kd2 {[%clk 0:01:08.3]} 30...
Rd5 {[%clk 0:00:56]} 31. Rxd5 {[%clk 0:01:02]} 31... Bxd5 {[%clk 0:00:53.8]} 32.
b4 {[%clk 0:00:55.3]} 32... Bf3 {[%clk 0:00:41.1]} 33. Bg6 {[%clk 0:00:51.7]}
33... Kd7 {[%clk 0:00:38.1]} 34. Kd3 {[%clk 0:00:50]} 34... a5 {[%clk
0:00:21.7]} 35. bxa5 {[%clk 0:00:46.4]} 35... Kc7 {[%clk 0:00:21.6]} 36. Kxd4
{[%clk 0:00:45.7]} 36... Be2 {[%clk 0:00:19.5]} 37. Kc5 {[%clk 0:00:44.7]} 37...
Bd3 {[%clk 0:00:16.6]} 38. Bxd3 {[%clk 0:00:44]} 1-0

[Event "*** Titled Tuesday Blitz"]
[Site "Chess.com"]
[Date "2020.12.01"]
[Round "4"]
[White "Oleksandr_Bortnyk"]
[Black "Leonid_Starozhilov"]
[Result "1-0"]
[WhiteElo "2885"]
[BlackElo "2663"]
[TimeControl "180+1"]
[EndTime "10:37:56 PST"]
[Termination "Oleksandr_Bortnyk won by resignation"]

1. e4 {[%clk 0:03:00.9]} 1... c5 {[%clk 0:02:58.9]} 2. Nf3 {[%clk 0:02:57.2]}
2... e6 {[%clk 0:02:59.2]} 3. c3 {[%clk 0:02:56.7]} 3... d5 {[%clk 0:02:56.2]}
4. exd5 {[%clk 0:02:57.6]} 4... exd5 {[%clk 0:02:56.7]} 5. d4 {[%clk 0:02:58.5]}
5... Nc6 {[%clk 0:02:56.9]} 6. Bb5 {[%clk 0:02:58.2]} 6... Bd6 {[%clk
0:02:55.7]} 7. Be3 {[%clk 0:02:50.6]} 7... c4 {[%clk 0:02:24.1]} 8. b3 {[%clk
0:02:44.6]} 8... cxb3 {[%clk 0:02:23.4]} 9. axb3 {[%clk 0:02:45.5]} 9... Ne7
{[%clk 0:02:23.2]} 10. O-O {[%clk 0:02:23.8]} 10... O-O {[%clk 0:02:22.7]} 11.
Nbd2 {[%clk 0:02:07.7]} 11... Bf5 {[%clk 0:02:14.9]} 12. Nh4 {[%clk 0:01:56.5]}
12... Be6 {[%clk 0:02:07]} 13. Bd3 {[%clk 0:01:53.4]} 13... Rc8 {[%clk
0:01:56.2]} 14. Qh5 {[%clk 0:01:43.5]} 14... g6 {[%clk 0:00:56.5]} 15. Qh6
{[%clk 0:01:39.6]} 15... Qd7 {[%clk 0:00:53.4]} 16. Rfe1 {[%clk 0:01:19.9]}
16... a6 {[%clk 0:00:37.1]} 17. Bf4 {[%clk 0:01:01.3]} 17... Rce8 {[%clk
0:00:26.6]} 18. Re3 {[%clk 0:00:39.8]} 18... Bxf4 {[%clk 0:00:20.4]} 19. Qxf4
{[%clk 0:00:40.7]} 19... f6 {[%clk 0:00:17.8]} 20. Rae1 {[%clk 0:00:35.8]} 20...
Nc8 {[%clk 0:00:08.6]} 21. Bxg6 {[%clk 0:00:32.9]} 21... hxg6 {[%clk 0:00:05.7]}
22. Nxg6 {[%clk 0:00:33.8]} 22... Rf7 {[%clk 0:00:04.9]} 23. Rg3 {[%clk
0:00:27.1]} 23... Rg7 {[%clk 0:00:04.7]} 24. Qh6 {[%clk 0:00:24.5]} 24... Nd6
{[%clk 0:00:03.1]} 25. Qh8+ {[%clk 0:00:23.4]} 25... Kf7 {[%clk 0:00:03.4]} 26.
Ne5+ {[%clk 0:00:23.7]} 1-0

[Event "*** Titled Tuesday Blitz"]
[Site "Chess.com"]
[Date "2020.12.01"]
[Round "4"]
[White "26andrej26"]
[Black "NewBornNow"]
[Result "0-1"]
[WhiteElo "2488"]
[BlackElo "2704"]
[TimeControl "180+1"]
[EndTime "10:37:56 PST"]
[Termination "NewBornNow won on time"]

1. e4 {[%clk 0:03:00.5]} 1... c5 {[%clk 0:02:56.2]} 2. Nf3 {[%clk 0:03:00.9]}
2... d6 {[%clk 0:02:56]} 3. d4 {[%clk 0:03:01.6]} 3... cxd4 {[%clk 0:02:56.4]}
4. Nxd4 {[%clk 0:03:02.5]} 4... Nf6 {[%clk 0:02:56.9]} 5. Nc3 {[%clk 0:03:02.6]}
5... Bd7 {[%clk 0:02:55.8]} 6. Bc4 {[%clk 0:03:02.8]} 6... e6 {[%clk 0:02:55.6]}
7. Bb3 {[%clk 0:03:03.3]} 7... Nc6 {[%clk 0:02:54.7]} 8. Be3 {[%clk 0:03:03.8]}
8... Na5 {[%clk 0:02:54.7]} 9. f4 {[%clk 0:03:03.7]} 9... a6 {[%clk 0:02:53.6]}
10. O-O {[%clk 0:03:00]} 10... Qc7 {[%clk 0:02:51.1]} 11. f5 {[%clk 0:02:57.8]}
11... Nxb3 {[%clk 0:02:50.1]} 12. cxb3 {[%clk 0:02:57.2]} 12... Be7 {[%clk
0:02:49.9]} 13. Rc1 {[%clk 0:02:56.8]} 13... Qb8 {[%clk 0:02:48.6]} 14. Qf3
{[%clk 0:02:53.6]} 14... O-O {[%clk 0:02:41.5]} 15. g4 {[%clk 0:02:53.8]} 15...
d5 {[%clk 0:02:16.7]} 16. exd5 {[%clk 0:02:29]} 16... Nxd5 {[%clk 0:02:14.8]}
17. Nxd5 {[%clk 0:02:26.8]} 17... exd5 {[%clk 0:02:14.3]} 18. g5 {[%clk
0:02:22.8]} 18... Bd6 {[%clk 0:02:12.8]} 19. Rc2 {[%clk 0:02:13.2]} 19... Re8
{[%clk 0:02:06.7]} 20. g6 {[%clk 0:01:57.8]} 20... fxg6 {[%clk 0:01:46.4]} 21.
fxg6 {[%clk 0:01:48.8]} 21... hxg6 {[%clk 0:01:45.7]} 22. Qf7+ {[%clk
0:01:08.3]} 22... Kh7 {[%clk 0:01:44.4]} 23. Rg2 {[%clk 0:01:03.6]} 23... Re7
{[%clk 0:01:30.5]} 24. Qxg6+ {[%clk 0:00:55.6]} 24... Kg8 {[%clk 0:01:29]} 25.
Bg5 {[%clk 0:00:35.2]} 25... Be8 {[%clk 0:01:15.5]} 26. Qf5 {[%clk 0:00:15.4]}
26... Re5 {[%clk 0:01:10.9]} 27. Qf3 {[%clk 0:00:14.7]} 27... Bc5 {[%clk
0:01:02.8]} 28. Be3 {[%clk 0:00:10.3]} 28... Qd6 {[%clk 0:00:53.4]} 29. Bf2
{[%clk 0:00:08]} 29... Bh5 {[%clk 0:00:50.4]} 30. Qf4 {[%clk 0:00:07.2]} 30...
Rf8 {[%clk 0:00:47.8]} 31. Nf5 {[%clk 0:00:06.8]} 31... Rfxf5 {[%clk 0:00:46.1]}
0-1

[Event "*** Titled Tuesday Blitz"]
[Site "Chess.com"]
[Date "2020.12.01"]
[Round "4"]
[White "VinzentSpitzl"]
[Black "nikitadovbnya2008"]
[Result "0-1"]
[WhiteElo "2390"]
[BlackElo "2196"]
[TimeControl "180+1"]
[EndTime "10:37:56 PST"]
[Termination "nikitadovbnya2008 won by resignation"]

1. e4 {[%clk 0:03:00.9]} 1... c6 {[%clk 0:03:00.3]} 2. Nf3 {[%clk 0:02:58.2]}
2... d5 {[%clk 0:03:01.2]} 3. Nc3 {[%clk 0:02:58.1]} 3... dxe4 {[%clk
0:03:00.6]} 4. Nxe4 {[%clk 0:02:57.8]} 4... Nf6 {[%clk 0:03:01]} 5. Qe2 {[%clk
0:02:58.1]} 5... Nxe4 {[%clk 0:02:59.7]} 6. Qxe4 {[%clk 0:02:59]} 6... Nd7
{[%clk 0:03:00.2]} 7. Bc4 {[%clk 0:02:57.9]} 7... Nf6 {[%clk 0:03:00.3]} 8. Ne5
{[%clk 0:02:57.9]} 8... e6 {[%clk 0:02:59.1]} 9. Qe2 {[%clk 0:02:57.3]} 9... Bd6
{[%clk 0:02:57]} 10. a4 {[%clk 0:02:51.4]} 10... O-O {[%clk 0:02:56]} 11. O-O
{[%clk 0:02:50.5]} 11... Nd5 {[%clk 0:02:51.3]} 12. d4 {[%clk 0:02:49.2]} 12...
f6 {[%clk 0:02:39.9]} 13. Nd3 {[%clk 0:02:38.2]} 13... Qe8 {[%clk 0:02:38.5]}
14. c3 {[%clk 0:02:29.6]} 14... Qg6 {[%clk 0:02:34.9]} 15. Bb3 {[%clk
0:02:25.2]} 15... Bd7 {[%clk 0:02:26.5]} 16. Bc2 {[%clk 0:02:23.9]} 16... Qf7
{[%clk 0:02:21.8]} 17. c4 {[%clk 0:02:17.3]} 17... Ne7 {[%clk 0:02:19.7]} 18.
Bf4 {[%clk 0:02:10.4]} 18... Nf5 {[%clk 0:02:17]} 19. Bxd6 {[%clk 0:02:02.5]}
19... Nxd6 {[%clk 0:02:17.9]} 20. Nc5 {[%clk 0:01:59.6]} 20... b6 {[%clk
0:02:15]} 21. Ne4 {[%clk 0:01:58.5]} 21... Nf5 {[%clk 0:02:11.1]} 22. Rad1
{[%clk 0:01:58.1]} 22... Rad8 {[%clk 0:02:08.1]} 23. Rfe1 {[%clk 0:01:56.3]}
23... Qe7 {[%clk 0:02:02.6]} 24. h3 {[%clk 0:01:54.1]} 24... Qb4 {[%clk
0:02:00.2]} 25. b3 {[%clk 0:01:42]} 25... Bc8 {[%clk 0:01:57.5]} 26. Qh5 {[%clk
0:01:12.2]} 26... g6 {[%clk 0:01:41.5]} 27. Qg4 {[%clk 0:01:06.4]} 27... Nxd4
{[%clk 0:01:35.5]} 28. Bb1 {[%clk 0:00:56.6]} 28... f5 {[%clk 0:01:30.9]} 29.
Qg5 {[%clk 0:00:52.1]} 29... fxe4 {[%clk 0:01:28.7]} 30. Bxe4 {[%clk 0:00:53]}
30... Qc5 {[%clk 0:01:00]} 31. Qh6 {[%clk 0:00:23]} 31... Ne2+ {[%clk
0:00:45.5]} 32. Kh2 {[%clk 0:00:14.5]} 32... Qe5+ {[%clk 0:00:43]} 33. g3 {[%clk
0:00:11.2]} 33... Qxe4 {[%clk 0:00:39.9]} 0-1

[Event "*** Titled Tuesday Blitz"]
[Site "Chess.com"]
[Date "2020.12.01"]
[Round "4"]
[White "MarceloPlaya"]
[Black "Klavdia_Nik"]
[Result "1-0"]
[WhiteElo "2268"]
[BlackElo "2057"]
[TimeControl "180+1"]
[EndTime "10:37:56 PST"]
[Termination "MarceloPlaya won on time"]

1. e4 {[%clk 0:03:00.3]} 1... e6 {[%clk 0:02:52.2]} 2. d4 {[%clk 0:02:54]} 2...
d5 {[%clk 0:02:52.1]} 3. Nc3 {[%clk 0:02:53.5]} 3... dxe4 {[%clk 0:02:52.3]} 4.
Nxe4 {[%clk 0:02:53.1]} 4... Bd7 {[%clk 0:02:52.9]} 5. Bg5 {[%clk 0:02:49.3]}
5... Be7 {[%clk 0:02:48.8]} 6. Bxe7 {[%clk 0:02:49.2]} 6... Qxe7 {[%clk
0:02:48.9]} 7. Qd2 {[%clk 0:02:49.5]} 7... Nf6 {[%clk 0:02:43.7]} 8. Nxf6+
{[%clk 0:02:48.8]} 8... Qxf6 {[%clk 0:02:43]} 9. O-O-O {[%clk 0:02:48.9]} 9...
Bc6 {[%clk 0:02:26.5]} 10. f3 {[%clk 0:02:47.4]} 10... Nd7 {[%clk 0:02:14.5]}
11. Ne2 {[%clk 0:02:46.7]} 11... Nb6 {[%clk 0:02:07.4]} 12. Nc3 {[%clk
0:02:44.9]} 12... O-O-O {[%clk 0:02:01.8]} 13. Bb5 {[%clk 0:02:39.3]} 13... Bxb5
{[%clk 0:01:57.1]} 14. Nxb5 {[%clk 0:02:38.7]} 14... Kb8 {[%clk 0:01:57]} 15.
Rhe1 {[%clk 0:02:32.7]} 15... a6 {[%clk 0:01:54.1]} 16. Nc3 {[%clk 0:02:31.3]}
16... Nd5 {[%clk 0:01:37.2]} 17. Ne4 {[%clk 0:02:29.7]} 17... Qf4 {[%clk
0:01:37.2]} 18. Qxf4 {[%clk 0:02:21.8]} 18... Nxf4 {[%clk 0:01:35.9]} 19. g3
{[%clk 0:02:22]} 19... Nd5 {[%clk 0:01:33.8]} 20. c3 {[%clk 0:02:21.3]} 20... h6
{[%clk 0:01:30.7]} 21. Re2 {[%clk 0:02:19.1]} 21... c6 {[%clk 0:01:23.5]} 22. f4
{[%clk 0:02:18.8]} 22... Kc7 {[%clk 0:01:17.5]} 23. Rf1 {[%clk 0:02:18.1]} 23...
Rhe8 {[%clk 0:01:14.4]} 24. Nc5 {[%clk 0:02:17.3]} 24... a5 {[%clk 0:01:07.3]}
25. Nd3 {[%clk 0:02:16.8]} 25... b5 {[%clk 0:00:50.1]} 26. Ne5 {[%clk
0:02:15.3]} 26... Re7 {[%clk 0:00:48]} 27. Rf3 {[%clk 0:02:13]} 27... Nb6 {[%clk
0:00:46.7]} 28. Rd2 {[%clk 0:02:02.8]} 28... Nc4 {[%clk 0:00:41.6]} 29. Nxc4
{[%clk 0:01:56.3]} 29... bxc4 {[%clk 0:00:41.4]} 30. Re3 {[%clk 0:01:54.3]}
30... g6 {[%clk 0:00:38.1]} 31. Re5 {[%clk 0:01:53.6]} 31... Kb6 {[%clk
0:00:35.8]} 32. Rde2 {[%clk 0:01:52.2]} 32... Red7 {[%clk 0:00:34.9]} 33. Kc2
{[%clk 0:01:45.9]} 33... Rd5 {[%clk 0:00:34.1]} 34. R5e4 {[%clk 0:01:41.8]}
34... h5 {[%clk 0:00:33.3]} 35. b3 {[%clk 0:01:38.5]} 35... cxb3+ {[%clk
0:00:28.6]} 36. axb3 {[%clk 0:01:37.3]} 36... c5 {[%clk 0:00:28.9]} 37. dxc5+
{[%clk 0:01:34.8]} 37... Rxc5 {[%clk 0:00:28.1]} 38. Ra4 {[%clk 0:01:31.9]}
38... Rdd5 {[%clk 0:00:12.5]} 39. c4 {[%clk 0:01:28.2]} 39... Rd4 {[%clk
0:00:12.6]} 40. Kc3 {[%clk 0:01:27.2]} 40... Rd1 {[%clk 0:00:12.7]} 41. Rd2
{[%clk 0:01:25.2]} 41... Rxd2 {[%clk 0:00:09.3]} 42. Kxd2 {[%clk 0:01:24.7]}
42... Rf5 {[%clk 0:00:07.9]} 43. Ke3 {[%clk 0:01:23.3]} 43... Rc5 {[%clk
0:00:04.5]} 44. Kd4 {[%clk 0:01:22.2]} 44... Rc7 {[%clk 0:00:03.8]} 45. Ra2
{[%clk 0:01:20.9]} 45... Rd7+ {[%clk 0:00:03.7]} 46. Ke5 {[%clk 0:01:20.6]} 1-0

[Event "*** Titled Tuesday Blitz"]
[Site "Chess.com"]
[Date "2020.12.01"]
[Round "4"]
[White "HouseOfDurin"]
[Black "tylityli"]
[Result "0-1"]
[WhiteElo "2106"]
[BlackElo "2317"]
[TimeControl "180+1"]
[EndTime "10:37:58 PST"]
[Termination "tylityli won by resignation"]

1. d4 {[%clk 0:03:00.9]} 1... Nf6 {[%clk 0:02:44.7]} 2. Bg5 {[%clk 0:03:01.3]}
2... Ne4 {[%clk 0:02:42.8]} 3. h4 {[%clk 0:03:00.8]} 3... h6 {[%clk 0:02:41.5]}
4. Bf4 {[%clk 0:03:00.3]} 4... d5 {[%clk 0:02:41.5]} 5. Nd2 {[%clk 0:03:00.5]}
5... Bf5 {[%clk 0:02:40.4]} 6. Nxe4 {[%clk 0:03:00.1]} 6... Bxe4 {[%clk
0:02:40.1]} 7. f3 {[%clk 0:03:00.6]} 7... Bf5 {[%clk 0:02:37.4]} 8. e3 {[%clk
0:03:01.1]} 8... e6 {[%clk 0:02:37]} 9. Bd3 {[%clk 0:03:01.3]} 9... Bxd3 {[%clk
0:02:35.5]} 10. Qxd3 {[%clk 0:03:02.2]} 10... Nd7 {[%clk 0:02:33.5]} 11. c3
{[%clk 0:02:41.4]} 11... c5 {[%clk 0:02:32.6]} 12. Qb5 {[%clk 0:02:40.9]} 12...
Qb6 {[%clk 0:02:30.3]} 13. a4 {[%clk 0:02:33.7]} 13... O-O-O {[%clk 0:02:19.8]}
14. Ne2 {[%clk 0:02:04.9]} 14... a6 {[%clk 0:02:12.2]} 15. Qxb6 {[%clk
0:02:00.5]} 15... Nxb6 {[%clk 0:02:12]} 16. dxc5 {[%clk 0:01:56.1]} 16... Bxc5
{[%clk 0:02:10.3]} 17. b4 {[%clk 0:01:56.7]} 17... Bd6 {[%clk 0:02:08.5]} 18. a5
{[%clk 0:01:42.8]} 18... Nc4 {[%clk 0:02:08.3]} 19. Kf2 {[%clk 0:01:30.6]} 19...
e5 {[%clk 0:02:06]} 20. Bg3 {[%clk 0:01:05.7]} 20... Bb8 {[%clk 0:02:05.5]} 21.
Rhe1 {[%clk 0:00:51]} 21... Ba7 {[%clk 0:02:04.7]} 22. Nc1 {[%clk 0:00:51.5]}
22... h5 {[%clk 0:02:00.9]} 23. Nd3 {[%clk 0:00:36.2]} 23... f6 {[%clk
0:01:59.8]} 24. Rad1 {[%clk 0:00:27.5]} 24... Kc7 {[%clk 0:01:56.1]} 25. Re2
{[%clk 0:00:25.6]} 25... Kc6 {[%clk 0:01:55.9]} 26. Nb2 {[%clk 0:00:25.5]} 26...
Kb5 {[%clk 0:01:51.8]} 27. Nxc4 {[%clk 0:00:18.8]} 27... Kxc4 {[%clk 0:01:51.2]}
28. Rc2 {[%clk 0:00:13.7]} 28... Rhe8 {[%clk 0:01:49.9]} 29. Ke2 {[%clk
0:00:13]} 29... f5 {[%clk 0:01:44.6]} 30. Bf2 {[%clk 0:00:12.9]} 30... e4 {[%clk
0:01:41.3]} 31. f4 {[%clk 0:00:11.1]} 31... Re6 {[%clk 0:01:36.6]} 32. Be1
{[%clk 0:00:11]} 32... Rg6 {[%clk 0:01:35.4]} 33. g3 {[%clk 0:00:11.4]} 33...
Rc6 {[%clk 0:01:35.2]} 34. Rb1 {[%clk 0:00:10]} 34... Kb5 {[%clk 0:01:32.2]} 35.
Bd2 {[%clk 0:00:09.3]} 35... Rc4 {[%clk 0:01:32.1]} 36. Rcb2 {[%clk 0:00:09.3]}
36... Rdc8 {[%clk 0:01:31.1]} 37. Rb3 {[%clk 0:00:09.4]} 37... Bb8 {[%clk
0:01:30.6]} 38. R1b2 {[%clk 0:00:09.3]} 38... Bd6 {[%clk 0:01:30.6]} 39. Rb1
{[%clk 0:00:08.6]} 39... Be7 {[%clk 0:01:30.8]} 40. R1b2 {[%clk 0:00:08.6]}
40... Bf6 {[%clk 0:01:31]} 41. Rb1 {[%clk 0:00:08.9]} 41... Bxc3 {[%clk
0:01:29.5]} 42. Bxc3 {[%clk 0:00:08.1]} 42... Rxc3 {[%clk 0:01:29.4]} 43. Rxc3
{[%clk 0:00:07.4]} 43... Rxc3 {[%clk 0:01:29.2]} 44. Rd1 {[%clk 0:00:08.1]}
44... Kc6 {[%clk 0:01:26.9]} 45. Rd4 {[%clk 0:00:07.3]} 45... Rc4 {[%clk
0:01:26.2]} 46. Kd2 {[%clk 0:00:05.9]} 46... Rxd4+ {[%clk 0:01:23.4]} 47. exd4
{[%clk 0:00:06.8]} 47... Kb5 {[%clk 0:01:23.1]} 48. Kc3 {[%clk 0:00:06.7]} 48...
Ka4 {[%clk 0:01:23.3]} 49. g4 {[%clk 0:00:05.8]} 49... fxg4 {[%clk 0:01:20.9]}
0-1